bitfinex/quotes_ETHUSD_20240811
["timestamp","ask_amount","ask_price","bid_price","bid_amount"]
[1723405417322,5.8864,2609.9,2609.4,3.2458972]
[1723405417524,5.8864,2609.9,2609.4,5.9284272]
[1723405417850,5.8864,2609.9,2609.4,5.9284172]
[1723405418350,5.8864,2609.9,2609.5,0.59284172]
[1723405418547,5.8864,2609.9,2609.6,2.6824]
[1723405419665,2.68132,2610.7,2609.8,2.68219]
[1723405419961,4.63018845,2611.2,2609.5,0.0766384]
[1723405419962,5.8864,2610.3,2610.1,2.68188]
[1723405420123,5.8864,2610.3,2610.0,5.36386]
[1723405420325,5.8864,2610.3,2610.1,0.536386]
[1723405420612,5.8864,2610.3,2610.0,2.75853047]
[1723405420757,5.8864,2610.3,2610.1,2.68183]
[1723405420968,5.8864,2610.3,2610.2,2.68178]
[1723405421572,5.8864,2610.3,2610.0,2.75851802]
[1723405421866,5.8864,2610.3,2608.9,0.268314]
[1723405421867,5.8864,2610.3,2609.7,2.68223]
[1723405422031,5.8864,2610.3,2609.8,2.68218]
[1723405422247,5.8864,2610.3,2609.8,2.68213]
[1723405422563,5.8864,2610.3,2609.9,2.68203]
[1723405422937,5.8864,2610.3,2610.0,2.68192]
[1723405423469,5.8864,2610.3,2609.8,2.68212]
[1723405423672,5.8864,2610.3,2609.9,0.268212]
[1723405424334,5.8864,2610.3,2609.8,2.68212]
[1723405424538,5.8864,2610.3,2609.8,5.36425]
[1723405424747,5.8864,2610.3,2609.9,2.68207]
[1723405424948,5.8864,2610.3,2609.9,2.68209]
[1723405425276,3.84609264,2611.1,2609.2,10.48]
[1723405425277,5.8864,2611.1,2610.3,2.68165]
[1723405425491,5.8864,2611.1,2610.4,2.75816462]
[1723405425650,5.8864,2611.1,2609.9,3.703]
[1723405425850,5.8864,2611.1,2610.5,2.68141]
[1723405426070,8.56732,2611.1,2609.9,2.68204]
[1723405426251,1.16521264,2611.6,2609.9,2.68204]
[1723405426252,5.8864,2610.8,2610.1,2.68183]
[1723405426441,2.68058,2611.4,2609.9,3.05233]
[1723405426442,8.56774,2610.7,2609.9,3.05233]
[1723405426780,8.56773,2610.7,2610.0,2.68197]
[1723405427685,8.56773,2610.7,2609.9,2.68203]
[1723405427853,2.68088,2611.1,2609.6,2.68239]
[1723405427854,5.6844,2610.3,2609.6,2.68239]
[1723405428055,5.6844,2610.3,2609.6,2.68234]
[1723405428376,5.6844,2610.3,2609.8,2.6821]
[1723405428577,5.6844,2610.3,2610.0,2.68196]
[1723405428783,5.6844,2610.3,2609.8,2.6821]
[1723405428784,5.6844,2610.3,2609.8,5.3642]
[1723405428940,5.6844,2610.3,2609.8,2.6821]
[1723405429567,5.6844,2610.3,2609.8,5.36423]
[1723405429780,5.6844,2610.3,2610.1,2.68183]
[1723405429951,5.6844,2610.3,2610.2,2.68178]
[1723405430140,5.6844,2610.8,2610.4,2.68151]
[1723405430347,5.6844,2610.8,2610.5,0.07661015]
[1723405430654,5.6844,2610.8,2610.7,2.68127]
[1723405430845,5.6844,2611.3,2610.8,2.68117]
[1723405431177,5.6844,2611.3,2610.7,2.63127]
[1723405431389,5.6844,2611.3,2610.8,2.75768101]
[1723405431543,5.6844,2611.3,2611.0,2.68096]
[1723405431746,5.6844,2611.3,2610.8,2.75768101]
[1723405432584,5.6844,2611.3,2610.9,2.68102]
[1723405433453,5.36042,2611.8,2610.9,2.68102]
[1723405433655,5.9549,2611.8,2611.4,2.68045]
[1723405433879,5.9549,2611.8,2611.2,6.38371]
[1723405433880,5.9549,2611.8,2611.2,3.703]
[1723405434044,5.9549,2611.8,2611.4,2.68046]
[1723405434245,5.9549,2611.8,2611.5,0.07657543]
[1723405434749,0.1267435,2612.0,2611.7,2.68018]
[1723405434944,0.1267435,2612.0,2611.5,0.07657543]
[1723405434945,0.1267435,2612.0,2611.8,0.268018]
[1723405435244,0.1267435,2612.0,2611.5,2.75700543]
[1723405435449,0.1267435,2612.0,2611.9,2.68004]
[1723405435660,0.1267435,2612.0,2611.7,2.75678872]
[1723405435989,0.1267435,2612.0,2611.3,2.68056]
[1723405436141,5.9549,2611.9,2611.0,2.68096]
[1723405436345,0.1267435,2612.0,2611.5,2.68039]
[1723405436573,0.1267435,2612.0,2611.3,6.38362]
[1723405436768,0.1267435,2612.0,2611.3,2.68062]
[1723405436980,0.1267435,2612.0,2611.3,3.216763]
[1723405437249,0.1267435,2612.0,2611.3,0.536143]
[1723405437569,2.8067435,2612.0,2611.2,2.68072]
[1723405437746,2.8067435,2612.0,2611.0,2.68087]
[1723405437950,0.1267435,2612.0,2611.2,2.68069]
[1723405438281,0.1267435,2612.0,2610.9,3.0]
[1723405438482,5.9549,2611.9,2610.9,2.68098]
[1723405438685,8.63495,2611.9,2611.1,2.6808]
[1723405439048,2.68015,2611.8,2611.0,2.68087]
[1723405439268,2.68015,2611.8,2611.0,3.28680888]
[1723405439807,2.68015,2611.8,2610.9,0.6973788]
[1723405439808,5.9549,2611.5,2610.9,0.6973788]
[1723405440106,5.9549,2611.5,2610.6,2.68133]
[1723405440312,5.9549,2611.4,2610.4,2.68156]
[1723405440483,2.68066,2611.3,2610.4,2.68156]
[1723405440675,2.68066,2611.3,2610.5,0.638456]
[1723405440972,5.9549,2611.4,2610.5,0.638456]
[1723405441311,3.0,2611.8,2610.3,3.703]
[1723405441482,5.9549,2611.2,2610.2,2.68173]
[1723405441687,5.9549,2611.2,2610.3,0.07660464]
[1723405441880,5.9549,2611.2,2610.6,2.68129]
[1723405442084,5.9549,2611.2,2610.7,2.949319]
[1723405442419,5.9549,2611.2,2610.8,2.75775265]
[1723405442705,5.9549,2611.2,2610.9,2.681]
[1723405442893,5.9549,2611.2,2611.0,0.07658943]
[1723405443096,5.9549,2611.8,2611.1,2.68086]
[1723405443288,8.63508,2611.8,2611.0,2.75746943]
[1723405443608,5.9549,2611.8,2611.0,3.30135737]
[1723405443816,5.9549,2611.8,2611.2,2.68069]
[1723405444018,5.9549,2611.8,2611.3,0.07657482]
[1723405444332,5.9549,2611.8,2610.7,3.703]
[1723405444472,2.6803,2611.7,2610.9,2.681]
[1723405444916,2.6803,2611.7,2610.8,3.35137]
[1723405445112,2.6803,2611.7,2611.0,2.6809]
[1723405445319,2.6803,2611.7,2610.8,3.35137]
[1723405445320,5.9549,2611.8,2611.3,2.68064]
[1723405445485,5.9549,2611.8,2610.8,0.6703]
[1723405445486,5.9549,2611.8,2611.4,2.75709913]
[1723405445685,5.9549,2611.8,2611.5,0.35228411]
[1723405446813,5.9549,2611.8,2611.3,0.0765742]
[1723405447222,5.9549,2611.8,2611.4,2.68045]
[1723405447409,5.9549,2611.8,2611.6,2.68033]
[1723405447723,0.1267435,2612.0,2611.4,2.68045]
[1723405448132,0.1267435,2612.0,2611.2,2.68067]
[1723405448293,2.68014,2611.8,2611.1,6.38378]
[1723405448493,0.1267435,2612.0,2611.2,0.938378]
[1723405448712,0.1267435,2612.0,2611.4,2.68048]
[1723405449106,0.1267435,2612.0,2611.2,3.619078]
[1723405449107,0.1267435,2612.0,2611.2,6.299748]
[1723405449440,2.8066835,2612.0,2611.3,2.68065]
[1723405449591,2.8066835,2612.0,2611.4,0.6299698]
[1723405450315,0.1267435,2612.0,2611.4,0.6299698]
[1723405450522,0.1267435,2612.0,2611.5,0.07657543]
[1723405450772,0.1267435,2612.0,2611.6,2.68032]
[1723405450891,0.1267435,2612.0,2611.7,0.0765723]
[1723405451099,0.1267435,2612.0,2611.7,0.27568923]
[1723405451415,0.1267435,2612.0,2611.8,0.07656686]
[1723405452335,0.1267435,2612.0,2611.8,2.75668686]
[1723405453309,0.1267435,2612.0,2611.9,2.68004]
[1723405454103,0.1267435,2612.0,2611.9,5.36008]
[1723405454304,0.1267435,2612.0,2611.9,5.93131361]
[1723405455209,0.1267435,2612.0,2611.9,10.18431361]
[1723405455603,0.1267435,2612.0,2611.9,9.63431361]
[1723405456241,0.1267435,2612.0,2611.9,12.86435361]
[1723405456453,0.1267435,2612.0,2611.9,15.86435361]
[1723405457735,0.1267435,2612.0,2611.9,19.32365361]
[1723405459031,3.5e-06,2612.0,2611.9,19.32365361]
[1723405459246,3.5e-06,2612.0,2611.9,22.00369361]
[1723405459544,5.7699,2613.7,2612.6,3.4593]
[1723405459705,5.7699,2613.7,2613.2,2.6787]
[1723405459907,5.7699,2613.7,2613.1,2.67875]
[1723405460131,5.7699,2613.7,2612.7,3.39541]
[1723405460132,5.7699,2613.7,2612.9,2.67893]
[1723405460300,2.67752,2614.4,2612.7,0.71623]
[1723405460301,2.67781,2614.1,2612.7,0.71623]
[1723405460508,5.7699,2614.0,2612.3,2.67954]
[1723405460733,5.7699,2613.4,2612.7,2.67921]
[1723405460940,5.7699,2613.4,2612.7,5.35836]
[1723405461143,5.7699,2613.4,2612.8,0.535836]
[1723405461348,5.7699,2613.4,2612.7,2.67915]
[1723405461547,2.67861,2613.3,2612.5,2.67933]
[1723405461757,5.7699,2613.4,2612.7,2.67915]
[1723405461928,2.67803,2613.9,2612.8,2.67906]
[1723405462135,5.7699,2613.8,2613.2,2.6787]
[1723405462345,5.7699,2613.8,2612.9,0.613836]
[1723405462346,5.7699,2614.0,2613.3,2.67854]
[1723405462665,5.7699,2613.5,2612.6,2.67932]
[1723405462953,8.44836,2613.5,2612.8,2.67905]
[1723405463258,5.7699,2613.5,2613.0,2.67885]
[1723405463557,5.7699,2613.5,2613.0,0.267885]
[1723405463763,5.7699,2613.5,2612.5,4.270949]
[1723405463764,2.67856,2613.4,2612.5,6.950369]
[1723405463930,5.7699,2613.3,2612.5,4.270949]
[1723405464111,5.7699,2613.3,2612.8,2.67905]
[1723405464522,5.7699,2613.3,2612.6,0.4270949]
[1723405464727,2.67871,2613.2,2612.6,0.4270949]
[1723405465233,5.7699,2613.3,2612.1,6.38277]
[1723405465424,5.7699,2613.3,2612.6,2.67926]
[1723405465726,5.7699,2613.3,2612.4,2.67945]
[1723405465965,2.67877,2613.2,2612.4,2.67949]
[1723405466180,5.7699,2614.4,2613.1,2.67875]
[1723405466327,6.37956,2615.3,2613.2,0.638175]
[1723405466328,2.67774,2614.2,2613.2,0.638175]
[1723405466528,5.7699,2614.1,2613.3,2.67853]
[1723405467268,5.7699,2614.1,2613.3,2.67854]
[1723405467433,8.4477,2614.1,2613.3,5.35708]
[1723405467630,5.7699,2614.1,2613.4,2.6784]
[1723405467863,5.7699,2614.1,2613.5,2.67839]
[1723405468065,5.7699,2614.1,2613.3,2.67851]
[1723405468234,5.8463,2613.9,2613.2,2.67864]
[1723405468779,5.8463,2613.9,2612.7,2.67916]
[1723405469066,5.8463,2613.7,2613.0,2.67883]
[1723405469489,5.8463,2613.7,2613.2,2.67864]
[1723405469635,5.8463,2613.7,2613.0,2.67891]
[1723405470041,8.52455,2613.7,2613.0,2.67891]
[1723405470236,5.8463,2613.7,2613.1,2.67878]
[1723405470871,5.8463,2613.7,2613.2,2.67867]
[1723405471067,5.8463,2613.7,2613.3,2.67859]
[1723405471387,5.8463,2613.7,2613.2,2.67863]
[1723405471538,5.8463,2613.7,2613.3,2.67859]
[1723405472063,5.8463,2613.7,2613.0,5.35767]
[1723405472277,5.8463,2613.7,2613.1,2.67879]
[1723405472780,5.8463,2613.7,2612.9,2.67899]
[1723405472950,5.7142,2613.5,2612.8,2.67908]
[1723405473309,5.7142,2613.5,2612.6,3.703]
[1723405473573,5.7142,2613.5,2612.8,2.67903]
[1723405473773,5.7142,2613.5,2613.0,2.67889]
[1723405473979,8.39265,2613.5,2612.8,2.67904]
[1723405474338,5.7142,2613.5,2612.8,5.35809]
[1723405474676,5.7142,2613.5,2612.8,2.67904]
[1723405475078,5.7142,2613.5,2612.3,5.67959]
[1723405475079,2.67861,2613.3,2612.6,2.67923]
[1723405475241,5.7142,2613.2,2612.6,2.67923]
[1723405476288,2.67899,2613.0,2612.3,2.67959]
[1723405476581,5.7142,2612.9,2612.4,2.67951]
[1723405476889,5.7142,2612.9,2612.4,2.62951]
[1723405477675,5.7142,2612.9,2612.2,2.67966]
[1723405477876,5.7142,2612.9,2612.3,2.67954]
[1723405478301,5.7142,2612.9,2612.4,2.67951]
[1723405479211,5.7142,2612.9,2612.5,2.67941]
[1723405479410,5.7142,2612.9,2612.3,2.947494]
[1723405479791,5.7142,2612.9,2611.9,3.0]
[1723405480118,2.67832,2613.6,2611.9,2.67998]
[1723405480119,2.67935,2612.6,2611.9,2.67998]
[1723405480283,5.7142,2612.5,2611.7,2.68017]
[1723405480486,5.7142,2612.5,2612.0,2.67989]
[1723405480671,5.7142,2612.5,2611.9,2.67995]
[1723405480870,2.67969,2612.3,2611.3,2.68056]
[1723405481074,2.67969,2612.3,2611.2,7.48]
[1723405481075,8.39389,2612.3,2611.6,2.68034]
[1723405481308,2.67958,2612.4,2611.4,3.696576]
[1723405481309,2.6798,2612.2,2611.5,2.68042]
[1723405481515,5.7142,2612.1,2611.5,2.68042]
[1723405481814,5.7142,2612.1,2611.4,3.696576]
[1723405482016,8.39406,2612.1,2611.4,2.68052]
[1723405482227,5.7142,2612.1,2611.4,2.68048]
[1723405482711,5.7142,2612.1,2611.6,2.68033]
[1723405483215,5.7142,2612.1,2611.6,5.36062]
[1723405483374,5.7142,2612.1,2611.7,2.68024]
[1723405483580,5.7142,2612.1,2611.6,2.68028]
[1723405483898,5.7142,2612.1,2611.6,5.36057]
[1723405484211,5.7142,2612.1,2611.6,2.68028]
[1723405485135,5.7142,2612.1,2612.0,2.67993]
[1723405485285,5.7142,2612.9,2611.7,0.07657309]
[1723405485486,5.7142,2612.9,2612.2,2.67966]
[1723405485925,2.67872,2613.2,2612.0,2.67984]
[1723405486233,0.1,2613.7,2612.0,2.67986]
[1723405486234,5.7142,2612.7,2612.0,2.67986]
[1723405486525,5.7142,2612.7,2612.0,2.947846]
[1723405486834,5.7142,2612.7,2612.2,2.67972]
[1723405487330,5.7142,2612.7,2612.4,2.67944]
[1723405487512,5.7142,2612.7,2612.2,2.67964]
[1723405487710,5.7142,2612.7,2612.3,0.267964]
[1723405487916,5.7142,2612.7,2612.5,2.67939]
[1723405488123,5.7142,2612.7,2612.4,2.67943]
[1723405488625,5.7142,2612.7,2612.5,2.67939]
[1723405489185,5.5242,2613.2,2612.8,2.6791]
[1723405491485,5.5242,2613.2,2612.6,2.67926]
[1723405491688,8.20298,2613.2,2612.4,2.67946]
[1723405491933,8.20298,2613.2,2612.4,2.947406]
[1723405492116,3.0,2613.9,2612.4,2.947406]
[1723405492117,5.5242,2613.1,2612.4,2.947406]
[1723405492326,5.5242,2613.1,2612.4,2.67946]
[1723405492934,5.5242,2613.1,2612.4,5.35892]
[1723405493130,5.5242,2613.1,2612.4,5.35893]
[1723405493521,5.5242,2613.1,2612.4,2.67946]
[1723405493715,5.5242,2613.1,2612.4,0.07654925]
[1723405494093,5.5242,2613.1,2612.5,2.67936]
[1723405494297,5.5242,2613.1,2612.6,2.67927]
[1723405494499,5.5242,2613.1,2612.7,2.67921]
[1723405495924,5.5242,2613.1,2612.5,2.75590197]
[1723405495925,5.5242,2613.1,2612.6,2.67931]
[1723405496245,5.5242,2613.1,2612.5,5.35871]
[1723405496540,5.5242,2613.1,2612.6,0.07654208]
[1723405496742,5.5242,2613.1,2612.6,0.27558921]
[1723405497199,5.5242,2613.1,2612.5,2.67935]
[1723405497401,5.5242,2613.1,2612.6,2.67924]
[1723405497933,5.5242,2613.1,2612.3,2.67953]
[1723405498467,2.67897,2613.0,2612.3,5.35909]
[1723405498616,2.67891,2613.0,2612.3,2.67953]
[1723405498803,2.67891,2613.0,2612.3,5.35909]
[1723405499003,2.67891,2613.0,2612.3,5.3591]
[1723405499209,2.67891,2613.0,2612.1,2.67978]
[1723405499407,2.67891,2613.0,2612.2,2.67973]
[1723405499612,2.67891,2613.0,2612.1,3.21576]
[1723405499613,2.67891,2613.0,2612.3,2.67957]
[1723405499833,2.67891,2613.0,2612.1,2.67979]
[1723405500033,5.5242,2613.1,2612.4,2.67945]
[1723405500413,5.5242,2613.1,2612.2,2.67967]
[1723405500610,5.8613,2612.8,2612.2,2.67967]
[1723405501252,5.8613,2612.8,2612.3,2.67961]
[1723405501450,5.8613,2612.8,2612.2,3.215624]
[1723405501606,5.8613,2612.8,2612.2,2.67967]
[1723405501811,8.54047,2612.8,2612.0,2.67988]
[1723405502045,5.8613,2612.8,2612.0,2.67988]
[1723405502200,5.8613,2612.8,2612.2,2.67966]
[1723405502401,5.8613,2612.8,2612.2,5.35933]
[1723405502646,5.8613,2612.8,2612.2,2.67966]
[1723405503212,5.8613,2612.8,2612.1,0.267988]
[1723405503517,5.8613,2612.8,2612.6,2.67932]
[1723405503904,5.8613,2612.8,2612.6,2.67925]
[1723405504346,5.8613,2612.8,2612.4,2.67947]
[1723405505206,5.8613,2612.8,2612.5,2.67935]
[1723405505436,5.8613,2612.8,2612.4,3.215384]
[1723405505437,5.8613,2612.8,2612.4,5.894834]
[1723405505647,5.8613,2612.8,2612.4,3.215364]
[1723405506759,5.8613,2612.8,2612.4,0.535914]
[1723405507059,5.8613,2612.8,2612.1,3.267988]
[1723405507461,5.8613,2612.8,2612.2,2.67967]
[1723405507629,5.8613,2612.8,2612.2,5.35932]
[1723405507817,5.8613,2612.8,2612.4,2.6795]
[1723405508020,5.8613,2612.8,2612.5,2.6794]
[1723405508466,5.8613,2612.8,2612.4,5.35892]
[1723405508624,5.8613,2612.8,2612.4,0.535892]
[1723405508955,5.8613,2612.8,2612.4,2.67946]
[1723405509257,5.8613,2612.8,2612.6,2.6793]
[1723405509622,5.8613,2612.8,2612.6,5.35856]
[1723405510056,5.8613,2612.8,2612.4,5.35894]
[1723405510225,5.8613,2612.8,2612.5,2.67934]
[1723405510560,5.8613,2612.8,2612.7,2.67922]
[1723405511211,1.16521264,2613.8,2612.5,0.535878]
[1723405511212,5.5757,2613.7,2612.5,0.535878]
[1723405511355,5.5757,2613.7,2612.6,2.75586301]
[1723405511555,5.5757,2613.7,2613.0,2.67884]
[1723405512279,5.5757,2613.7,2613.1,2.6788]
[1723405512681,5.5757,2613.7,2612.9,5.35786]
[1723405512999,2.67831,2613.6,2613.0,2.6789]
[1723405513170,2.67831,2613.6,2612.9,5.35786]
[1723405513662,2.67831,2613.6,2612.7,5.3583]
[1723405513867,2.6785,2613.4,2612.7,2.67912]
[1723405514079,5.9857,2613.2,2612.3,2.67957]
[1723405514290,2.67881,2613.1,2612.2,3.0]
[1723405514501,2.67881,2613.1,2612.3,0.3267988]
[1723405514502,5.9857,2613.0,2612.3,0.3267988]
[1723405514710,5.9857,2613.0,2612.3,2.67953]
[1723405515005,8.66463,2613.0,2612.3,2.67953]
[1723405515298,2.67902,2612.9,2612.1,2.947718]
[1723405515454,5.9857,2612.8,2612.3,2.67962]
[1723405515657,5.9857,2612.8,2612.1,5.627468]
[1723405515868,5.9857,2612.8,2612.2,0.5627468]
[1723405516163,5.9857,2612.8,2612.2,3.2424568]
[1723405516506,5.9857,2612.8,2612.2,3.2424168]
[1723405516667,2.67953,2612.4,2611.6,2.948278]
[1723405516875,2.67904,2612.9,2611.8,2.68014]
[1723405516876,5.9857,2612.3,2611.8,2.68014]
[1723405517364,5.9857,2612.3,2611.6,5.36051]
[1723405517571,5.9857,2612.3,2611.6,2.68025]
[1723405517768,5.9857,2612.3,2611.6,5.36053]
[1723405517976,5.9857,2612.3,2611.6,2.68025]
[1723405518572,2.67953,2612.4,2611.5,2.68044]
[1723405518935,5.9857,2611.9,2610.8,2.768]
[1723405519079,5.9857,2611.9,2611.8,2.68014]
[1723405519587,5.9857,2611.9,2611.7,2.68016]
[1723405521119,5.9857,2611.9,2611.5,5.36076]
[1723405521283,5.9857,2611.9,2611.6,3.216416]
[1723405521484,5.9857,2612.5,2612.0,2.67986]
[1723405522248,5.9857,2612.5,2612.1,2.67973]
[1723405522730,5.9857,2612.5,2611.8,2.68009]
[1723405522731,5.9857,2612.4,2611.8,2.68009]
[1723405523235,5.9857,2612.4,2611.6,2.68027]
[1723405523436,5.9857,2612.2,2611.6,2.68027]
[1723405523727,5.9857,2612.2,2611.6,3.216346]
[1723405524024,5.9857,2612.2,2611.8,2.68006]
[1723405524327,5.9857,2612.2,2611.9,2.68001]
[1723405524823,5.9857,2612.2,2612.0,2.67993]
[1723405525328,5.9857,2612.2,2611.9,2.68003]
[1723405525621,5.9857,2612.2,2612.0,0.268003]
[1723405525798,5.9857,2612.2,2611.9,2.67998]
[1723405526874,5.9857,2612.2,2611.9,2.67997]
[1723405527080,5.9857,2612.2,2611.3,2.768]
[1723405527081,5.9857,2612.2,2611.5,2.68041]
[1723405527286,8.6655,2612.2,2611.5,2.68041]
[1723405527431,5.9857,2612.1,2611.5,2.68041]
[1723405528439,8.66553,2612.1,2611.5,2.68041]
[1723405528796,5.9857,2612.1,2611.6,0.07657895]
[1723405528936,5.3661,2612.8,2612.2,2.67969]
[1723405529372,8.04523,2612.8,2612.0,2.67984]
[1723405529572,8.04523,2612.8,2612.0,2.95548029]
[1723405529876,5.3661,2612.8,2612.2,2.67972]
[1723405530493,5.3661,2612.8,2612.3,2.67956]
[1723405530638,5.3661,2612.8,2612.3,0.54358433]
[1723405530839,5.3661,2612.8,2612.3,3.22314433]
[1723405531381,5.3661,2612.8,2612.3,0.54358433]
[1723405531683,5.3661,2612.8,2612.3,2.67961]
[1723405532383,5.3661,2612.8,2612.0,0.27564029]
[1723405532595,1.16521264,2613.4,2613.1,2.67872]
[1723405532596,5.3655,2613.4,2613.1,2.67872]
[1723405532882,5.3655,2613.4,2613.0,2.67885]
[1723405533044,5.3655,2613.4,2612.8,2.67905]
[1723405533246,5.3655,2613.4,2612.9,2.67899]
[1723405533604,5.3655,2613.4,2613.1,2.67874]
[1723405534088,5.3655,2613.4,2612.9,2.67895]
[1723405534289,5.3655,2613.4,2612.7,2.67915]
[1723405534936,5.3655,2613.4,2612.8,2.6791]
[1723405535088,5.3655,2613.4,2612.8,3.214925]
[1723405535288,5.3655,2613.4,2612.9,2.67899]
[1723405535638,5.3655,2613.4,2612.8,0.535825]
[1723405535792,8.044,2613.4,2612.8,0.535825]
[1723405536449,5.3655,2613.4,2613.2,2.67862]
[1723405536787,5.3655,2613.4,2613.3,2.6786]
[1723405538253,5.3655,2614.1,2613.3,2.6786]
[1723405538399,5.3655,2614.0,2613.3,2.6786]
[1723405538599,2.67816,2613.8,2613.0,2.67889]
[1723405538922,5.3655,2613.7,2613.1,2.67879]
[1723405540323,5.3655,2613.7,2613.3,2.6786]
[1723405540655,5.3655,2613.7,2613.6,2.67829]
[1723405540868,1.16521264,2614.5,2614.0,2.67782]
[1723405540869,5.3655,2614.5,2614.0,2.67782]
[1723405541617,5.3655,2614.5,2614.0,5.35564]
[1723405541859,5.3655,2614.5,2614.0,2.67782]
[1723405542344,5.3655,2614.5,2614.3,2.67748]
[1723405542648,5.3655,2614.5,2614.1,2.6777]
[1723405542852,5.3655,2614.5,2613.4,10.248]
[1723405543058,5.3655,2614.5,2613.5,2.67831]
[1723405543059,5.3655,2614.2,2613.5,2.67831]
[1723405543427,5.3655,2614.2,2613.7,2.67817]
[1723405544255,5.3655,2614.2,2613.7,2.67812]
[1723405544429,5.3655,2614.2,2613.8,2.67808]
[1723405544768,5.3655,2614.2,2613.3,2.67854]
[1723405544975,5.3655,2613.8,2613.2,2.67866]
[1723405545271,5.3655,2613.8,2613.2,2.67869]
[1723405545440,5.3655,2613.8,2613.4,2.67849]
[1723405545647,5.3655,2613.8,2613.2,5.3573]
[1723405545974,5.3655,2613.8,2613.2,2.67861]
[1723405546333,3.0,2614.1,2613.1,2.67878]
[1723405546334,5.3655,2613.7,2613.1,2.67878]
[1723405546555,5.3655,2613.7,2613.0,5.3577]
[1723405547232,5.3655,2613.7,2613.0,2.67883]
[1723405547571,5.3655,2613.7,2613.0,5.35767]
[1723405547782,5.3655,2613.7,2613.0,2.67883]
[1723405547942,5.3655,2613.7,2613.0,5.35768]
[1723405548143,2.67853,2613.4,2612.7,2.67916]
[1723405548346,2.6787,2613.3,2612.5,2.67936]
[1723405548683,5.4931,2613.0,2612.3,2.67956]
[1723405549675,5.4931,2613.0,2612.3,2.67955]
[1723405549990,5.4931,2612.8,2612.1,2.67976]
[1723405550138,5.4931,2612.8,2612.7,2.67922]
[1723405550340,5.4931,2612.8,2612.5,2.67933]
[1723405551248,5.4931,2612.8,2612.7,2.67922]
[1723405552576,5.4931,2612.8,2612.7,5.35844]
[1723405552780,5.4931,2612.8,2612.7,2.67922]
[1723405553300,5.67825,2613.7,2612.9,2.67896]
[1723405553301,5.6078,2613.6,2612.9,2.67896]
[1723405553476,5.6078,2613.5,2612.9,2.67896]
[1723405554302,8.2862,2613.5,2612.7,2.67913]
[1723405554505,5.6078,2613.4,2612.7,2.67913]
[1723405554713,5.6078,2613.3,2612.7,2.67913]
[1723405555266,5.6078,2613.3,2612.7,2.947043]
[1723405555463,5.6078,2613.3,2612.7,0.267913]
[1723405555672,5.6078,2613.3,2611.7,2.68017]
[1723405555673,5.6078,2613.2,2612.3,2.67957]
[1723405555886,5.6078,2612.9,2612.3,2.67957]
[1723405556177,8.28693,2612.8,2612.1,2.67976]
[1723405556379,8.28693,2612.8,2612.1,3.215734]
[1723405556595,5.6078,2612.8,2612.3,2.67962]
[1723405556913,5.6078,2612.8,2612.1,2.67976]
[1723405557481,5.6078,2612.8,2612.1,5.35953]
[1723405557884,5.6078,2612.8,2612.2,2.67971]
[1723405558069,5.6078,2612.8,2612.2,0.535947]
[1723405558267,5.6078,2612.8,2612.0,2.67984]
[1723405558508,5.6078,2612.7,2612.1,2.67976]
[1723405558826,5.6078,2612.7,2612.2,2.67964]
[1723405559111,5.6078,2612.7,2612.3,2.67962]
[1723405559310,5.6078,2612.7,2612.2,0.267976]
[1723405559808,5.6078,2612.7,2612.1,2.67976]
[1723405560031,8.28702,2612.7,2612.1,2.67976]
[1723405560620,5.6078,2612.7,2612.1,2.67976]
[1723405561120,5.6078,2612.7,2611.9,2.67998]
[1723405561296,3.0,2613.4,2611.9,2.67998]
[1723405561297,5.6078,2612.5,2611.9,0.567998]
[1723405561486,5.6078,2612.4,2611.7,2.68017]
[1723405561687,5.6078,2612.4,2612.0,2.67992]
[1723405561896,5.6078,2612.4,2612.0,2.67986]
[1723405562283,5.6078,2612.4,2612.0,5.35973]
[1723405562589,5.6078,2612.4,2612.0,2.67986]
[1723405562908,5.6078,2612.4,2611.8,2.68007]
[1723405563206,5.6078,2612.4,2611.9,0.268007]
[1723405563374,5.6078,2612.4,2611.8,2.68014]
[1723405563576,5.6078,2612.3,2611.6,5.36052]
[1723405563776,5.6078,2612.3,2611.6,2.68025]
[1723405564088,5.6078,2612.3,2611.5,2.68044]
[1723405564276,2.67953,2612.4,2611.6,3.216434]
[1723405564277,2.67975,2612.2,2611.6,3.216434]
[1723405564469,5.6078,2612.1,2611.6,3.216434]
[1723405564672,5.6078,2612.1,2611.6,0.536094]
[1723405564946,2.67924,2612.7,2610.6,7.48]
[1723405564947,2.68025,2611.7,2610.6,7.48]
[1723405565087,5.6078,2611.9,2611.2,2.68075]
[1723405565292,5.6078,2611.9,2611.6,2.68029]
[1723405565518,5.6078,2611.9,2611.7,0.268029]
[1723405565714,5.6078,2611.9,2611.2,2.68066]
[1723405566435,8.28785,2611.9,2611.2,2.68066]
[1723405566619,5.6078,2611.9,2611.2,5.36134]
[1723405566830,5.6078,2611.9,2611.4,2.68054]
[1723405567001,5.6078,2611.9,2611.5,0.268054]
[1723405567207,8.28791,2611.9,2611.2,2.6807]
[1723405567416,5.6078,2611.7,2611.0,2.68087]
[1723405567932,5.5219,2611.5,2610.8,2.68111]
[1723405568134,5.5219,2611.5,2610.9,0.268111]
[1723405568835,5.5219,2611.4,2610.8,2.68114]
[1723405568998,5.5219,2611.4,2610.6,2.68131]
[1723405568999,8.20247,2611.4,2610.7,2.68125]
[1723405569192,8.20247,2611.4,2610.8,2.68116]
[1723405569193,5.5219,2611.4,2610.8,2.68116]
[1723405569519,5.5219,2611.4,2610.9,0.268116]